Workbook

Sheet JOURNAL DE TRADING
B2: JOURNAL DE TRADING (ACTIONS) : 2024
C4: ENTRÉE EN POSITION | O4: SORTIE DE POSITION | V4: COMMENTAIRES | AG4: MENSUEL | AI4: Vente partielle
C5: Titre | D5: Date | E5: Niveau d'entrée | F5: Stop | G5: Stop en % | H5: Nombre | I5: ORDRE | J5: DEVISE | K5: PUBLICATION | L5: Montant | O5: Date | P5: Durée | Q5: Résultat | R5: Frais | S5: Gains/pertes | AG5: HEBDO | AI5: Vente totale
B6: 1 | C6: ACCOR | D6: 2019-03-26 | E6: 36.81 | F6: 38.35 | G6: =IF(ISBLANK(F6),"",(F6/E6)-1) -> 0.04183645748 | H6: 81 | I6: VENTE | J6: € | K6: 2019-04-18 | L6: =IF(J6="€",E6*H6,E6*H6*$D$31) -> 2981.61 | M6: =S6 -> -77.51 | O6: 2019-04-03 | P6: =O6-D6 -> 8 | Q6: -57.51 | R6: -20 | S6: =R6+Q6 -> -77.51 | T6: =S6 -> -77.51 | V6: Vente prise trop tard, aurait du prendre le 22 (absent) ou ne rien prendre compte tenu du CAC en remonté. | AG6: DAILY | AI6: Renfort
B7: 4 | C7: ALPHABET | D7: 2019-04-01 | E7: 1191.14 | F7: 1159 | G7: -0.02698255453 | H7: 4 | I7: ACHAT | J7: $ | K7: 2019-04-29 | L7: =IF(J7="€",E7*H7,E7*H7*$D$31) -> 4192.8128 | M7: =S7 -> 32.05 | O7: 2019-04-08 | P7: =O7-D7 -> 7 | Q7: 35.95 | R7: -3.9 | S7: 32.05 | T7: =S7+#REF! ->  | V7: Taux de change important le dernier jour | AG7: M1 | AI7: ACHAT | AJ7: CONTRE TENDANCE | AK7: NON
B8: 5 | C8: NEUROCRINE BIOSCIENCE | D8: 2019-04-02 | E8: 90 | F8: 84.34 | G8: -0.06288888889 | H8: 23 | I8: ACHAT | J8: $ | K8: 2019-05-02 | L8: =IF(J8="€",E8*H8,E8*H8*$D$31) -> 1821.6 | M8: -29.81 | O8: 2019-04-04 | P8: =O8-D8 -> 2 | Q8: -25.91 | R8: -3.9 | S8: -29.81 | V8: Doit suivre et tracer niveaux en M15 sur position courte. | AG8: FIGURE / SUPPORT | AK8: OUI
B9: 6 | C9: DISCOVERY INC | D9: 2019-04-10 | E9: 27.36 | F9: 26.5 | G9: -0.03143274854 | H9: 151 | I9: ACHAT | J9: $ | K9: 2019-05-02 | L9: 3635.5968 | M9: 145.4 | O9: 2019-04-10 | P9: 1 | Q9: 149.3 | R9: -3.9 | S9: 145.4 | T9: =S14+#REF! ->  | AI9: €
B10: 7 | C10: APPLE | D10: 2019-04-16 | E10: 199.73 | F10: 198.28 | G10: -0.007259800731 | H10: 35 | I10: ACHAT | J10: $ | K10: 2019-04-30 | L10: 6151.684 | M10: 282.9 | O10: 2019-04-23 | P10: =O10-D10 -> 7 | Q10: 286.8 | R10: -3.9 | S10: 282.9 | T10: =S15+T9 ->  | AI10: $
B11: 8 | C11: AIRBUS | D11: 2019-04-17 | E11: 118.72 | F11: 117.28 | G11: -0.01212938005 | H11: 44 | I11: ACHAT | J11: € | K11: 2019-04-30 | L11: 5223.68 | M11: -25.76 | O11: 2019-04-18 | P11: =O11-D11 -> 1 | Q11: -15.84 | R11: =-4.96*2 -> -9.92 | S11: -25.76 | T11: =S11+T10 ->  | V11: Ne pas anticiper le marché, tenir sa ligne de progression. | AJ11: SORTI
B12: 9 | C12: LIBERTY GLOBAL | D12: 2019-04-22 | E12: 27.68 | F12: 26.61 | G12: -0.03865606936 | H12: 123 | I12: ACHAT | J12: $ | K12: 2019-05-06 | L12: 2996.0832 | M12: -41.41 | O12: 2019-04-23 | P12: =O12-D12 -> 1 | Q12: -37.51 | R12: -3.9 | S12: -41.41 | AJ12: NON SORTI
B13: 10 | C13: VMWARE | D13: 2019-04-22 | E13: 190.32 | F13: 183 | G13: -0.03846153846 | H13: 18 | I13: ACHAT | J13: $ | K13: 2019-05-30 | L13: 3014.6688 | M13: 159.72 | O13: 2019-04-24 | P13: =O13-D13 -> 2 | Q13: 163.62 | R13: -3.9 | S13: 159.72
B14: 11 | C14: TAKEAWAY | D14: 2019-04-23 | E14: 76.4 | F14: 73.1 | G14: -0.04319371728 | H14: 35 | I14: ACHAT | J14: € | K14: 2019-05-15 | L14: 2674 | M14: 38.1 | O14: 2019-04-26 | P14: =O14-D14 -> 3 | Q14: 42 | R14: -3.9 | S14: 38.1 | T14: =#REF!+T13 -> 
B15: 12 | L15: 0 | M15: =S15 -> 0 | T15: =#REF!+T14 ->  | AG15: WIN | AH15: =COUNTIF(S6:S25,">5") -> 6
B16: 13 | L16: 0 | M16: 0 | AG16: LOST | AH16: =COUNTIF(S6:S25,"<-5") -> 4
B17: 14 | L17: 0 | M17: 0 | AG17: NEUTRAL | AH17: =COUNTIF(S6:S25,"<5")-AH16 -> 0
B18: 15 | L18: 0 | M18: 0
B19: 16 | L19: 0 | M19: 0
B20: 17 | L20: 0 | M20: =S20 -> 0
B21: 18 | L21: 0 | M21: 0
B22: 19 | L22: 0 | M22: 0 | AG22: HEBDO
B23: 20 | L23: 0 | M23: 0
O24: Performance mensuelle | S24: =SUM(S6:S23) -> 483.68
T25: =S25+T19 -> 
C28: INDICATEURS | V28: BILAN :
C31: Taux change $/€ | D31: 0.88 | H31: Gain moyen trade gagnant | J31: =AVERAGEIF(S6:S23,">5") -> 131.634
H32: Gain moyen trade perdant | J32: =AVERAGEIF(S6:S25,"<5") -> -43.6225
C34: Capital précédent | D34: 15000 | H34: Gain par trade | J34: =AVERAGE(S6:S16) -> 53.74222222
C35: Capital actuel | D35: =D34+S24 -> 15483.68
C36: Evolution | D36: =D35-D34 -> 483.68 | H36: Durée moyenne du trade | J36: =AVERAGE(P6:P25) -> 3.555555556
C38: Rentabilité mensuelle | D38: =D36/D34 -> 0.03224533333

Sheet PLAN DE TRADING
C2: PLAN DE TRADING (H1 / H4 / DAILY) | O2: =TODAY() -> 2024-04-12
B6: 1. | C6: EVALUER LES PERTURBATIONS ECONOMIQUES (NEWS / 3 - 4 SORCIERES) | G6: NON REALISÉ | I6: =IF(G6="NON REALISÉ",0,1) -> 0 | K6: =I8*I12*I10*I14 -> 1 | L6: SENS DE TRADING : | N6: =VLOOKUP(K6,Y15:AE35,2,FALSE) -> ACHAT | P6: =IF(N6="ACHAT",1,IF(N6="VENTE",3,2)) -> 1 | X6: NON REALISÉ | Y6: HAUSSIÈRE | Z6: EXISTANT | AA6: RANG / CANAL | AB6: EN TENDANCE
X7: PAS DE NEWS | Y7: BAISSIÈRE | Z7: QUASI INEXISTANT | AA7: PROGRESSION / FLUX | AB7: EN CONTRE TENDANCE
B8: 2. | C8: TENDANCE EN COURS (H1, H4) | G8: HAUSSIÈRE | I8: =IF(G8="HAUSSIÈRE",1,2) -> 1 | L8: OBJECTIF : | N8: =VLOOKUP(K6,Y15:AE35,3,FALSE) -> Dans le sens de la tendance | X8: NEWS TRACÉES | AA8: CONSOLIDATION
B10: 3. | C10: CARACTÉRISTIQUES TECHNIQUES | G10: PROGRESSION / FLUX | I10: =IF(G10="PROGRESSION / FLUX",1,IF(G10="CONSOLIDATION",7,5)) -> 1 | L10: METHODOLOGIE : | N10: =VLOOKUP(K6,Y15:AE35,4,FALSE) -> Retracement 50% / Canaux / Open
B12: 4. | C12: POTENTIEL DE CONTINUATION (BB / OBJECTIF) | G12: EXISTANT | I12: =IF(G12="EXISTANT",1,3) -> 1 | L12: POINTS DE VIGILANCE : | N12: =VLOOKUP(K6,Y15:AE35,5,FALSE) -> Invalidation de la progression
B14: 5. | C14: INVALIDATION BRUTALE / DOUBLE TOP - BOTTOM / THEORIE DE DOW | G14: EN TENDANCE | I14: =IF(G14="EN TENDANCE",1,10) -> 1 | Z14: SENS DE TRADING | AA14: OBJECTIF | AB14: METHODE | AC14: POINTS DE VIGILANCE
Y15: 1 | Z15: ACHAT | AA15: Dans le sens de la tendance | AB15: Retracement 50% / Canaux / Open | AC15: Invalidation de la progression
C16: =IF($AB$38=2,Z37,IF($AB$38=1,AA37,"")) ->  | I16: =IF(C16="",3,1) -> 3 | Y16: 2 | Z16: VENTE | AA16: Dans le sens de la tendance | AB16: Retracement 50% / Canaux / Open | AC16: Cycle / Invalidation / OPEN / NEWS
Y17: 3 | Z17: ATTENTE | AA17: Repérer les invalidations pour chercher le reverse | AB17: Retracement 50% / Théorie de Dow | AC17: Cycle / Invalidation / OPEN / NEWS
Y18: 6 | Z18: ATTENTE | AA18: Repérer les invalidations pour chercher le reverse | AB18: Retracement 50% / Théorie de Dow | AC18: Cycle / Invalidation / OPEN / NEWS
Y19: 5 | Z19: NEUTRE | AA19: ACHAT jusqu'au haut de range / VENTE jusqu'au bas de range | AB19: Retracement 50% / Théorie de Dow après confirmation du reverse | AC19: Bornage / Zone d'invalidation / Reprise de la tendance initiale.
Y20: 7 | Z20: VENTE | AA20: Exploiter les consolidations | AB20: Retracement 50% / Théorie de Dow | AC20: Potentiel de retracement / Zone d'invalidation.
Y21: 21 | Z21: ACHAT | AA21: Reprise de tendance initiale | AB21: Retracement 50% / Canaux / Open | AC21: Invalidation de la consolidation (reprise baissière)
Y22: 42 | Z22: VENTE | AA22: Reprise de tendance initiale | AB22: Retracement 50% / Canaux / Open | AC22: Invalidation de la consolidation (reprise haussière)
Y23: 10 | Z23: NEUTRE | AA23: VENTE jusqu'au bas de range / ACHAT jusqu'au haut de range | AB23: Retracement 50% / Théorie de Dow après confirmation du reverse | AC23: Bornage / Zone d'invalidation / Reprise de la tendance initiale.
Y24: 15 | Z24: NEUTRE
C25: Cadrage global = Plan de trading pour support résistance / canaux / retracement en vue d'évaluer ou non un flux et une direction. | Y25: 14 | Z25: ACHAT | AA25: Exploiter les consolidations | AB25: Retracement 50% / Théorie de Dow | AC25: Potentiel de retracement / Zone d'invalidation.
C26: Pendant la journée suivre le flux, repérer les changements (invalidation brutale / DT) | Y26: 70 | Z26: ATTENTE | AA26: Réévaluer la situation de marché | AB26: Vision H1 / H4 | AC26: News / Ouverture / Zone de reprise
C27: Evaluer le flux (fort : suivre / faible BB) | Y27: 140 | Z27: ATTENTE | AA27: Réévaluer la situation de marché | AB27: Vision H1 / H4 | AC27: News / Ouverture / Zone de reprise
C28: Suivre les invalidations | Y28: 50 | Z28: VENTE | AA28: Exploiter la baisse après Open | AB28: Invalidation / OPEN sur retracement | AC28: Bornage / Reprise tendance initiale
Y29: 100 | Z29: ACHAT | AA29: Exploiter la hausse après Open | AB29: Invalidation / OPEN sur retracement | AC29: Bornage / Reprise tendance initiale
Y30: 30 | Z30: VENTE | AA30: Jouer le reverse s'il se présente | AB30: Invalidation / OPEN sur retracement | AC30: Bornage / Reprise tendance initiale
Y31: 60 | Z31: ACHAT | AA31: Jouer le reverse s'il se présente | AB31: Invalidation / OPEN sur retracement | AC31: Bornage / Reprise tendance initiale
Z37: Jour des 4 sorcières | AA37: Jour des 3 sorcières
AB38: =SUM(AB39:AB46) -> 0
Z39: Jour des 4 sorcières | AA39: 2019-06-21 | AB39: =IF(AA39=$O$2,2,0) -> 0
Z40: Jour des 3 sorcières | AA40: 2019-07-19 | AB40: =IF(AA40=$O$2,1,0) -> 0
Z41: Jour des 3 sorcières | AA41: 2019-08-16 | AB41: =IF(AA41=$O$2,1,0) -> 0
Z42: Jour des 4 sorcières | AA42: 2019-09-20 | AB42: =IF(AA42=$O$2,2,0) -> 0
Z43: Jour des 3 sorcières | AA43: 2019-10-18 | AB43: =IF(AA43=$O$2,1,0) -> 0
Z44: Jour des 3 sorcières | AA44: 2019-11-15 | AB44: =IF(AA44=$O$2,1,0) -> 0
Z45: Jour des 4 sorcières | AA45: 2019-12-20 | AB45: =IF(AA45=$O$2,2,0) -> 0
Z46: Jour des 3 sorcières | AA46: 2020-01-17 | AB46: =IF(AA46=$O$2,1,0) -> 0
